Cogmind - Beta 17 @@@ ROGUE MODE // 2026.07.15 @ 15:46:07 Player: aperiodic Result: Destroyed by YI-UF0 with YI-UF0's Doublenader Performance ------------- Evolutions (0) 0 Regions Visited (2) 400 Robots Destroyed (20) 100 Value Destroyed (434) 434 Prototype IDs (2) 40 Alien Tech Used (0) 0 Bonus (0) 0 TOTAL SCORE: 974 Bonus ------- None Cogmind --------- Core Integrity 0/250 Matter 277/300 Energy 98/100 System Corruption 0% Temperature Cool (0) Movement Core (700) Ox13 Location -10/Mines Parts ------- > --- POWER (1) -------- (None) > --- PROPULSION (2) --- (None) > --- UTILITY (2) ------ High-capacity Storage Unit > --- WEAPON (2) ------- Assault Rifle > --- INVENTORY (20) --- Light Treads Compact Wheel Compact Wheel Medium Storage Unit Cargo Storage Unit Light Armor Plating Light Armor Plating Light Armor Plating Light Cannon Light Cannon Grenade Launcher Mining Laser Peak State ------------ > --- POWER ------------ Ion Engine > --- PROPULSION ------- Wheel Wheel > --- UTILITY ---------- Medium Storage Unit Seismic Detector > --- WEAPON ----------- Light Cannon Light Cannon > --- INVENTORY -------- Light Treads Light Treads Compact Wheel Compact Wheel Cargo Storage Unit Medium Laser Assault Rifle Assault Rifle Mining Laser [Rating: 8] Favorites ----------- Power Ion Engine Engine Ion Engine Propulsion Wheel Treads Light Treads Wheel Wheel Utility Seismic Detector Device Seismic Detector Storage High-capacity Storage Unit Weapon Light Cannon Energy Gun Medium Laser Ballistic Gun Assault Rifle Ballistic Cannon Light Cannon Special Weapon Mining Laser Build | -11 -10 -10 ------- Run | Yrd Mat Min Slots Evolved . | . . . Power . | . . . Propulsion . | . . . Utility . | . . . Weapon . | . . . Parts Attached 19 | 7 9 3 Power 2 | 1 . 1 Engine 2 | 1 . 1 Core . | . . . Reactor . | . . . Propulsion 6 | 2 4 . Treads 2 | . 2 . Leg . | . . . Wheel 4 | 2 2 . Hover . | . . . Flight . | . . . Utility 4 | 2 2 . Device 1 | 1 . . Storage 3 | 1 2 . Processor . | . . . Hackware . | . . . Protection . | . . . Artifact . | . . . Weapon 7 | 2 3 2 Energy Gun 1 | 1 . . Energy Cannon . | . . . Ballistic Gun 3 | 1 . 2 Ballistic Cannon 2 | . 2 . Launcher . | . . . Special Weapon 1 | . 1 . Impact Weapon . | . . . Slashing Weapon . | . . . Piercing Weapon . | . . . Special Melee Weapon . | . . . Unidentified Prototypes . | . . . Parts Lost 7 | . . 7 Power 2 | . . 2 Propulsion 2 | . . 2 Utility 1 | . . 1 Weapon 2 | . . 2 Highest Loss Streak 6 | . . 6 To Critical Strikes . | . . . Average Backups 9 | 2 9 12 Power . | . . . Propulsion 3 | 1 3 3 Utility 2 | . 1 5 Weapon 4 | . 4 4 Tool/Special . | . . . Unused Backups 6 | . 1 5 Power 1 | . 1 . Propulsion . | . . . Utility 4 | . . 4 Weapon 1 | . . 1 Tool/Special . | . . . Average Slot Usage (%) 99 | . 100 96 Engine 13 | . 14 13 Treads 2 | . 1 6 Wheel 25 | . 26 19 Device 13 | . 14 13 Storage 14 | . 14 14 Energy Gun 3 | . 3 1 Ballistic Gun 2 | . 3 1 Ballistic Cannon 20 | . 20 24 Special Weapon 1 | . 1 . Peak Build Rating 8 | 7 8 8 Average Rating 7 | 5 7 7 On Entrance 5 | . 7 8 Avg Prop Armor Cover (%) 10 | . . 10 Naked Turns . | . . . Heaviest Build 52 | 15 52 52 Greatest Support 32 | 32 32 20 Greatest Overweight (x) 5 | . 2 5 Average Overweight (x) 1 | . 1 2 Largest Inventory Capacity 20 | 8 20 20 Average Capacity 13 | 7 12 20 Most Carried 14 | 6 14 14 Average Carried 10 | 3 10 13 Final Capacity 20 | 8 20 20 Final Carried 14 | 6 14 13 Class Distribution -------------------- 100% | Mutant Dominant Class ---------------- Mutant | -10/Materials Mutant | -10/Mines Resources | -11 -10 -10 ----------- Run | Yrd Mat Min Matter Collected 786 | 148 493 145 Remotely . | . . . Salvage Created 476 | 15 336 125 Parts 42 | 4 31 7 Haulers Intercepted 2 | . 2 . Recyclers Shooed 2 | 1 1 . Parts Field Recycled . | . . . Retrieved Matter . | . . . Parts Self-Destructed . | . . . Prevented . | . . . Parts Restored . | . . . Kills | -11 -10 -10 ------- Run | Yrd Mat Min Combat Hostiles Destroyed 12 | . 8 4 Guns 2 | . 2 . Cannons 10 | . 6 4 Classes Destroyed 7 | 1 6 . Worker 1 | . 1 . Tunneler 1 | 1 . . Hauler 2 | . 2 . Operator 1 | . 1 . Watcher 3 | . 3 . Swarmer 4 | . 4 . Grunt 8 | . 4 4 Best Kill Streak 5 | 1 5 2 Combat Bots Only 3 | . 3 2 Max Kills in Single Turn 1 | 1 1 1 Gunslinging . | . . . Exploded . | . . . Melee . | . . . Uniques/NPCs Destroyed . | . . . Combat | -11 -10 -10 -------- Run | Yrd Mat Min Hostile Shots Fired 58 | . 21 37 Missed 9 | . 3 6 Hits 49 | . 18 31 Projectile 49 | . 18 31 AOE 18 | . . 18 Critical Strikes 4 | . 1 3 Damage Taken 910 | . 149 761 Core 277 | . 31 246 Absorbed by Shields . | . . . Core Remaining (%) 100 | 100 . . Volleys Fired 52 | 2 34 16 Largest 2 | 2 2 2 Hottest 100 | 70 100 70 Shots Fired 94 | 4 61 29 Gun 29 | 4 12 13 Cannon 59 | . 43 16 Launcher . | . . . Special 6 | . 6 . Kinetic 75 | 2 49 24 Thermal 19 | 2 12 5 Explosive . | . . . Electromagnetic . | . . . Robot Hit Streak 6 | 1 6 5 Robot Miss Streak 3 | 2 3 3 Penetration Max . | . . . Secondary Targets . | . . . Shots Hit Robots 50 | 1 29 20 Core Hits 23 | 1 15 7 Critical Kills . | . . . Critical Parts Destroyed . | . . . Critical Strikes 4 | . 2 2 Blast 4 | . 2 2 Melee Attacks . | . . . Impact . | . . . Slashing . | . . . Piercing . | . . . Sneak Attacks . | . . . Combat Hostiles . | . . . Follow-up Attacks . | . . . Damage Inflicted 836 | 13 512 311 Guns 190 | 13 81 96 Cannons 646 | . 431 215 Explosions . | . . . Melee . | . . . Ramming . | . . . Kinetic 787 | . 500 287 Thermal 49 | 13 12 24 Explosive . | . . . Electromagnetic . | . . . Impact . | . . . Slashing . | . . . Piercing . | . . . Highest Corruption . | . . . Average Corruption . | . . . Corruption Purged . | . . . Corruption Blocked . | . . . Overload Shots . | . . . Overflow Damage 7 | . 7 . Projectiles 7 | . 7 . Explosions . | . . . Melee . | . . . Knockbacks 8 | . 6 2 Impact . | . . . Kinetic 8 | . 6 2 Secondary . | . . . Self-Inflicted Damage . | . . . Shots . | . . . Rammed . | . . . Targets Rammed . | . . . Kicked . | . . . Crushed . | . . . Highest Temperature 90 | 9 45 90 Average Temperature 24 | 6 16 40 Received Heat Transfer 183 | . 24 159 Siege Activations . | . . . Martial Activations . | . . . Shielding Activations . | . . . Robots Disrupted . | . . . Combat Hostiles . | . . . Robots Corrupted . | . . . Combat Hostiles . | . . . Parts Fried . | . . . Impact Corruptions . | . . . Robots Melted . | . . . Combat Hostiles . | . . . Parts Melted . | . . . Heat Transferred 148 | 37 37 74 Parts Sabotaged . | . . . Parts Stolen . | . . . Parts Stripped . | . . . Power Chain Reactions . | . . . Alert | -11 -10 -10 ------- Run | Yrd Mat Min Maximum Alert Level . | . . . Low Security (%) 100 | 100 100 100 Level 1 . | . . . Level 2 . | . . . Level 3 . | . . . Level 4 . | . . . Level 5 . | . . . High Security . | . . . Max Security . | . . . Peak Influence 83 | 5 83 83 Initial 18 | . . 18 Average 38 | . 38 54 Influence Increases 508 | 5 388 115 Destroy 0b10 Robot/C 240 | . 160 80 Destroy 0b10 Robot/NC 40 | 5 35 . Destroy Leader 70 | . 50 20 Successful Hack 31 | . 31 . Select Force Hacks 60 | . 60 . Disable Machine 30 | . 15 15 Destroy Structure 7 | . 7 . Lose Combat Pursuer 30 | . 30 . Influence Decreases 508 | 5 341 162 Entered New Map 29 | . . 29 Time Decay 416 | 5 341 70 Lost Part 63 | . . 63 Squads Dispatched 5 | . 5 . Investigation 3 | . 3 . Extermination . | . . . Reinforcement 2 | . 2 . Assault . | . . . Garrison . | . . . Intercept . | . . . Searches Triggered . | . . . Construction Impeded . | . . . Haulers Reinforced . | . . . Active Scanning Responses . | . . . Cargo Convoy Interrupts . | . . . Stealth | -11 -10 -10 --------- Run | Yrd Mat Min Distress Signals . | . . . Communications Jammed . | . . . Distress Signals . | . . . Times Spotted 22 | . 17 5 Peak Tracking Total 4 | . 4 2 Tactical Retreats 2 | . 2 . Traps | -11 -10 -10 ------- Run | Yrd Mat Min Traps Triggered 1 | . 1 . Indirectly . | . . . Trap Hack Attempts . | . . . Triggered . | . . . Disarmed . | . . . Reprogrammed . | . . . Reused . | . . . Traps Extracted . | . . . Installed . | . . . Triggered . | . . . Machines | -11 -10 -10 ---------- Run | Yrd Mat Min Machines Disabled 2 | . 1 1 Max in Single Turn 1 | . 1 1 Machines Repaired . | . . . Machines Dismantled . | . . . Machines Sabotaged . | . . . Overloaded Fab Kills . | . . . Hacking | -11 -10 -10 --------- Run | Yrd Mat Min Machines Accessed 7 | . 7 . Terminals 5 | . 5 . Fabricators . | . . . Repair Stations . | . . . Recycling Units 2 | . 2 . Scanalyzers . | . . . Garrison Access . | . . . Total Hacks 22 | . 22 . Successful 14 | . 14 . Failed 8 | . 8 . Catastrophic . | . . . Database Lockouts . | . . . Manual 16 | . 16 . Terminals 20 | . 20 . Fabricators . | . . . Repair Stations . | . . . Recycling Units 2 | . 2 . Scanalyzers . | . . . Garrison Access . | . . . Terminal Hacks 4 | . 4 . Robot Analysis 1 | . 1 . Prototype ID Bank 1 | . 1 . Terminal Index 1 | . 1 . Locate Traps 1 | . 1 . Fabricator Hacks . | . . . Repair Station Hacks . | . . . Recycling Unit Hacks . | . . . Scanalyzer . | . . . Garrison Access Hacks . | . . . Unauthorized Hacks 10 | . 10 . Terminals 8 | . 8 . Assimilate 1 | . 1 . Botnet 1 | . 1 . Operators 1 | . 1 . Skim 5 | . 5 . Fabricators . | . . . Repair Stations . | . . . Recycling Units 2 | . 2 . Tunnel 2 | . 2 . Scanalyzers . | . . . Garrison Access . | . . . Data Cores Recovered . | . . . Used . | . . . Hacking Detections 5 | . 5 . Full Trace Events . | . . . Feedback Events . | . . . Feedback Blocked . | . . . Robot Schematics Acquired . | . . . Robots Built . | . . . Authchips . | . . . Time . | . . . Total Robot Build Rating . | . . . Part Schematics Acquired . | . . . Parts Built . | . . . Authchips . | . . . Time . | . . . Total Part Build Rating . | . . . Part Studies Acquired . | . . . Parts Repaired . | . . . Time . | . . . Parts Recycled . | . . . Recycled Matter . | . . . Retrieved Matter . | . . . Retrieved Components . | . . . Parts Scanalyzed . | . . . Part Schematics Acquired . | . . . Parts Damaged . | . . . Bothacking | -11 -10 -10 ------------ Run | Yrd Mat Min Used RIF Installer . | . . . Robots Hacked . | . . . Non-combat . | . . . Combat . | . . . Robot Hacks Applied . | . . . Relay Couplers Released . | . . . Fabnet Peak Effective % . | . . . Robots Rewired . | . . . Allies Hacked . | . . . Hacks Repelled . | . . . Allies | -11 -10 -10 -------- Run | Yrd Mat Min Total Allies . | . . . Largest Group . | . . . Highest-Rated Group . | . . . Highest-Rated Ally . | . . . Total Orders . | . . . Ally Attacks . | . . . Total Damage . | . . . Kills . | . . . Allies Corrupted . | . . . Allies Melted . | . . . Intel | -11 -10 -10 ------- Run | Yrd Mat Min Active Infowar (turns) 1131 | 17 978 136 Seismic 1131 | 17 978 136 Robot Analysis Total 1 | . 1 . Derelict Logs Recovered . | . . . Drone Launches . | . . . Drone Recoveries . | . . . Exploration | -11 -10 -10 ------------- Run | Yrd Mat Min Turns Passed 1188 | 64 978 146 Spaces Moved 833 | 42 739 52 Core 4 | 4 . . Treads . | . . . Legs . | . . . Wheels 829 | 38 739 52 Hover . | . . . Flight . | . . . Fastest Speed 50 | 50 80 110 Average Speed 97 | 95 96 112 Slowest Speed 155 | 100 110 155 Overloaded Moves . | . . . Propulsion Burnouts . | . . . Robots Hopped . | . . . Potential Cave-ins . | . . . Cave-ins Triggered . | . . . Exploration Rate (%) 34 | 3 80 19 Regions Visited 2 Branch Regions 1 Pre-discovered Areas 4 | . 4 . Known Exits Taken . | . . . Unknown Exits Taken 2 | 1 1 . Scrap Searched . | . . . Spaces Dug 4 | . 4 . Terrain Destroyed 6 | . 6 . Melee . | . . . Projectile 6 | . 6 . AOE . | . . . Terrain Rammed . | . . . Walls Destroyed . | . . . Machines Disabled . | . . . Actions | -11 -10 -10 --------- Run | Yrd Mat Min Total 1088 | 58 923 107 Wait 148 | 2 116 30 Move 831 | 41 738 52 Hop . | . . . Pick Up 16 | 6 10 . Fast Attach 8 | 7 . 1 Attach 1 | . . 1 Detach . | . . . Swap 27 | . 20 7 Drop 5 | . 5 . Fire 52 | 2 34 16 Melee . | . . . Ram . | . . . Kick . | . . . Crush . | . . . Escape Stasis . | . . . Rewire . | . . . Trap . | . . . Miscellaneous . | . . . Route ------- -11/Scrapyard -10/Materials (discovered 4 exits: *Mat x3 / [*Min]) -10/Mines (discovered 4 exits: Mat x2 / Exi / Sub) History --------- Turn | Location | Event 15 | -11/Scrapyard | Discovered new exit (range 15) 65 | -11/Scrapyard | Entered Materials 317 | -10/Materials | Build established: Mutant 427 | -10/Materials | Discovered new exit (range 13) 498 | -10/Materials | Discovered new exit (range 9) 579 | -10/Materials | Discovered new exit (range 14) 644 | -10/Materials | Learned location of 1 exit from Recycling 673 | -10/Materials | Learned Storage security intel 690 | -10/Materials | Loaded intel: 44 machine locations 695 | -10/Materials | Learned 2 Mines zone layouts 696 | -10/Materials | Learned location of 2 exits from Mines 699 | -10/Materials | Learned location of 2 exits from Mines 821 | -10/Materials | Discovered new exit (range 9) 1043 | -10/Materials | Entered Mines 1044 | -10/Mines | Identified exit to Materials 1044 | -10/Mines | Identified exit to Exiles 1044 | -10/Mines | Identified exit to Subcaves 1163 | -10/Mines | YI-UF0 nonchalantly dropped a Grenade Launcher on the ground 1178 | -10/Mines | Core integrity fell below 50% 1186 | -10/Mines | Core integrity fell below 20% 1189 | -10/Mines | Destroyed by YI-UF0 with YI-UF0's Doublenader Last Messages --------------- 01163_ YI-UF0 nonchalantly drops a Grenade Launcher on the ground. 01165_ Acquired 35 matter. 01166_ Acquired 3 matter. 01167_ Acquired 38 matter. 01170_ YI-UF0: "BOOM TO YOU TOO!" 01171_ YI-UF0 mumbles something. 01173_ The unstable cave ceiling collapses. 01175_ Wheel destroyed. 01179_ Seismic Detector destroyed. 01181_ Ion Engine destroyed. 01181_ Med. Laser destroyed. 01183_ Destroyed Shock Absorption System. 01184_ YI-UF0 mumbles something. 01184_ The unstable cave ceiling collapses. 01185_ YI-UF0 mumbles something. 01185_ U-05 Engineer lays Concrete. 01185_ Assault Rifle destroyed. 01186_ U-05 Engineer lays Concrete. 01189_ The unstable cave ceiling collapses. Map ----- +----------------------------------------------------+ | | | | | ????????????????????????????????? | | ????????????????????????????????? | | ?########???#######?????????????? | | ?# #?### ###???????????? | | ?# """ ### """ ##??????????? | | ?# "" ## """ #??????????? | | ?# "" ## """ ##?????????? | | ?#! != ## ###???????? | | ?# ##??????? | | ?# ## #??????? | | ?# ####### #??????? | | ?# #?????# #??????? | | ?# """ #?????## # ##?????? | | ?# """ #??????## ## #?????? | | ?# """ #???????# ## #?##??? | | ?# #???????# ### ## ##?? | | ?########???????# #?# ##? | | ???????????????? #?## ## #? | | ???????????????? #??#### #? | | ??????????????? ##?## ] #? | | ??????????? #?## #? | | ?????????? ## # #?? | | ?????????? # ##? | | ?????????? g@ #? | | ???????????????# ## #? | | #?## ???????? ?## #? | | #??###????????????## # | | #????????????????? # | | #?####??????????? # | | #?# ??????????#### u # | | #?# ?????????????# # | | #?# ""?????????????## u # | | ### ""??????????????## # ##### | | ## ""??????????????? ?##???? | | ## ??????????????## ??????? | | ### ??????????????? ??????? | | #?# ??????????????? ??????? | | ##### ?????????????? ??????? | | #??# ?????????????? ??????? | | #??# ??????????????? ???????? | | #??# ????????????????????????? | | #??# ??????????